[Event "Titled Tuesday Blitz May 4 2021"]
[White "Djordjevic, Dejan N"]
[Black "Cella, Glaucio Dalla Cortt"]
[WhiteFideId "913316"]
[BlackFideId "2119455"]
[WhiteElo "2262"]
[BlackElo "2011"]
[Result "1-0"]
[Round "08"]
[TimeControl "180+1"]
[Date "2021.05.04"]
[WhiteClock "0:00:18"]
[BlackClock "0:00:07"]

1. e4 {[%clk 0:03:00]}  d5 {[%clk 0:02:57]} 2. exd5 {[%clk 0:03:00]}  Nf6 {[%clk 0:02:58]} 3. d4 {[%clk 0:03:00]}  Nxd5 {[%clk 0:02:58]} 4. Nf3 {[%clk 0:03:00]}  Bg4 {[%clk 0:02:54]} 5. Be2 {[%clk 0:03:00]}  Nc6 {[%clk 0:02:50]} 6. O-O {[%clk 0:02:59]}  e6 {[%clk 0:02:49]} 7. c4 {[%clk 0:02:58]}  Nf6 {[%clk 0:02:46]} 8. Be3 {[%clk 0:02:55]}  Be7 {[%clk 0:02:44]} 9. Nc3 {[%clk 0:02:52]}  O-O {[%clk 0:02:44]} 10. b3 {[%clk 0:02:52]}  Bh5 {[%clk 0:02:26]} 11. h3 {[%clk 0:02:50]}  a6 {[%clk 0:02:18]} 12. a3 {[%clk 0:02:48]}  Rb8 {[%clk 0:01:56]} 13. Qd3 {[%clk 0:02:17]}  Bg6 {[%clk 0:01:55]} 14. Qd1 {[%clk 0:02:08]}  Bh5 {[%clk 0:01:54]} 15. Qd2 {[%clk 0:01:59]}  Bg6 {[%clk 0:01:54]} 16. Rfd1 {[%clk 0:01:58]}  Ne4 {[%clk 0:01:54]} 17. Nxe4 {[%clk 0:01:58]}  Bxe4 {[%clk 0:01:55]} 18. b4 {[%clk 0:01:57]}  Bf6 {[%clk 0:01:53]} 19. Rac1 {[%clk 0:01:56]}  Qd7 {[%clk 0:01:39]} 20. Qc3 {[%clk 0:01:52]}  Rfd8 {[%clk 0:01:38]} 21. Ne5 {[%clk 0:01:51]}  Qe8 {[%clk 0:01:24]} 22. f3 {[%clk 0:01:50]}  Bxe5 {[%clk 0:01:16]} 23. fxe4 {[%clk 0:01:30]}  Bf6 {[%clk 0:01:10]} 24. e5 {[%clk 0:01:29]}  Be7 {[%clk 0:01:09]} 25. Rd2 {[%clk 0:01:19]}  g6 {[%clk 0:01:03]} 26. d5 {[%clk 0:01:17]}  Nxe5 {[%clk 0:00:48]} 27. Qxe5 {[%clk 0:01:13]}  Bd6 {[%clk 0:00:49]} 28. Qe4 {[%clk 0:01:08]}  exd5 {[%clk 0:00:46]} 29. Qxe8+ {[%clk 0:01:06]}  Rxe8 {[%clk 0:00:46]} 30. Kf2 {[%clk 0:00:59]}  dxc4 {[%clk 0:00:44]} 31. Rxc4 {[%clk 0:00:56]}  Re5 {[%clk 0:00:31]} 32. Bd4 {[%clk 0:00:46]}  Rf5+ {[%clk 0:00:31]} 33. Bf3 {[%clk 0:00:46]}  Bf4 {[%clk 0:00:26]} 34. Re2 {[%clk 0:00:45]}  b5 {[%clk 0:00:18]} 35. Rc6 {[%clk 0:00:42]}  Rd8 {[%clk 0:00:18]} 36. Bb2 {[%clk 0:00:38]}  Bd6 {[%clk 0:00:15]} 37. Rxa6 {[%clk 0:00:37]}  h5 {[%clk 0:00:13]} 38. Kg1 {[%clk 0:00:20]}  Bg3 {[%clk 0:00:10]} 39. Ra8 {[%clk 0:00:19]}  Rd5 {[%clk 0:00:07]} 40. Bxd5 {[%clk 0:00:18]} 1-0


[Site "https://www.chess.com"]

[Event "Titled Tuesday Blitz May 4 2021"]
[White "Dobrov, Vladimir"]
[Black "Nakamura, Hikaru"]
[WhiteFideId "4136594"]
[BlackFideId "2016192"]
[WhiteElo "2614"]
[BlackElo "2900"]
[Result "0-1"]
[Round "08"]
[TimeControl "180+1"]
[Date "2021.05.04"]
[WhiteClock "0:00:07"]
[BlackClock "0:00:18"]

1. b3 {[%clk 0:03:00]}  c5 {[%clk 0:02:51]} 2. Bb2 {[%clk 0:03:01]}  d6 {[%clk 0:02:51]} 3. e3 {[%clk 0:02:54]}  Nf6 {[%clk 0:02:48]} 4. Nf3 {[%clk 0:02:52]}  e5 {[%clk 0:02:48]} 5. c4 {[%clk 0:02:28]}  g6 {[%clk 0:02:45]} 6. Nc3 {[%clk 0:02:24]}  Bg7 {[%clk 0:02:45]} 7. d3 {[%clk 0:02:14]}  O-O {[%clk 0:02:44]} 8. Nd2 {[%clk 0:02:02]}  d5 {[%clk 0:02:38]} 9. cxd5 {[%clk 0:02:01]}  Nxd5 {[%clk 0:02:38]} 10. Nxd5 {[%clk 0:02:00]}  Qxd5 {[%clk 0:02:38]} 11. Qc2 {[%clk 0:01:50]}  Nc6 {[%clk 0:02:38]} 12. a3 {[%clk 0:01:50]}  Be6 {[%clk 0:02:28]} 13. Rb1 {[%clk 0:01:21]}  Rac8 {[%clk 0:02:23]} 14. h4 {[%clk 0:01:20]}  h6 {[%clk 0:02:08]} 15. Ba1 {[%clk 0:01:20]}  Rfd8 {[%clk 0:02:06]} 16. Be2 {[%clk 0:01:20]}  b6 {[%clk 0:02:05]} 17. O-O {[%clk 0:01:11]}  Qd7 {[%clk 0:02:05]} 18. Rfe1 {[%clk 0:01:06]}  Qe7 {[%clk 0:02:05]} 19. g3 {[%clk 0:01:06]}  f5 {[%clk 0:02:05]} 20. Nf3 {[%clk 0:00:57]}  Bf7 {[%clk 0:02:04]} 21. Bf1 {[%clk 0:00:55]}  Rd6 {[%clk 0:01:56]} 22. b4 {[%clk 0:00:51]}  cxb4 {[%clk 0:01:49]} 23. axb4 {[%clk 0:00:52]}  Rdd8 {[%clk 0:01:49]} 24. Qb2 {[%clk 0:00:52]}  a5 {[%clk 0:01:46]} 25. b5 {[%clk 0:00:47]}  Nb4 {[%clk 0:01:45]} 26. Nxe5 {[%clk 0:00:45]}  Qe6 {[%clk 0:01:28]} 27. d4 {[%clk 0:00:39]}  Rc2 {[%clk 0:01:23]} 28. Qa3 {[%clk 0:00:40]}  Bxe5 {[%clk 0:01:22]} 29. dxe5 {[%clk 0:00:37]}  Rdd2 {[%clk 0:01:23]} 30. Rbd1 {[%clk 0:00:17]}  Rxf2 {[%clk 0:00:22]} 31. Rd6 {[%clk 0:00:17]}  Qc4 {[%clk 0:00:22]} 32. Rxg6+ {[%clk 0:00:11]}  Kf8 {[%clk 0:00:19]} 33. e6 {[%clk 0:00:07]}  Qxf1+ {[%clk 0:00:18]} 0-1


[Site "https://www.chess.com"]

[Event "Titled Tuesday Blitz May 4 2021"]
[White "Dogan, Mire Deniz"]
[Black "Lehtosaari, Mauri"]
[WhiteFideId "6317456"]
[BlackFideId "501999"]
[WhiteElo "1850"]
[BlackElo "2397"]
[Result "1-0"]
[Round "08"]
[TimeControl "180+1"]
[Date "2021.05.04"]
[WhiteClock "0:00:50"]
[BlackClock "0:00:54"]

1. b4 {[%clk 0:03:00]}  c6 {[%clk 0:02:58]} 2. Bb2 {[%clk 0:02:58]}  Qb6 {[%clk 0:02:56]} 3. a3 {[%clk 0:02:59]}  a5 {[%clk 0:02:56]} 4. c4 {[%clk 0:03:00]}  axb4 {[%clk 0:02:53]} 5. c5 {[%clk 0:03:00]}  Qc7 {[%clk 0:02:51]} 6. axb4 {[%clk 0:03:00]}  Rxa1 {[%clk 0:02:52]} 7. Bxa1 {[%clk 0:03:01]}  d5 {[%clk 0:02:50]} 8. Nf3 {[%clk 0:02:52]}  Nf6 {[%clk 0:02:49]} 9. Be5 {[%clk 0:02:51]}  Qd7 {[%clk 0:02:46]} 10. Bxb8 {[%clk 0:02:51]}  Ne4 {[%clk 0:02:43]} 11. Nc3 {[%clk 0:02:48]}  g6 {[%clk 0:02:37]} 12. Nxe4 {[%clk 0:02:43]}  dxe4 {[%clk 0:02:38]} 13. Ne5 {[%clk 0:02:40]}  Qd5 {[%clk 0:02:34]} 14. e3 {[%clk 0:02:39]}  e6 {[%clk 0:02:23]} 15. Bc4 {[%clk 0:02:34]}  Qd8 {[%clk 0:02:23]} 16. O-O {[%clk 0:02:17]}  Bg7 {[%clk 0:02:23]} 17. Bd6 {[%clk 0:02:07]}  f6 {[%clk 0:02:16]} 18. Qg4 {[%clk 0:01:32]}  fxe5 {[%clk 0:02:15]} 19. Bxe6 {[%clk 0:01:31]}  Bd7 {[%clk 0:02:04]} 20. Ra1 {[%clk 0:01:24]}  Bf6 {[%clk 0:02:00]} 21. h4 {[%clk 0:01:06]}  Be7 {[%clk 0:01:46]} 22. Ra7 {[%clk 0:00:54]}  Bxd6 {[%clk 0:01:10]} 23. cxd6 {[%clk 0:00:55]}  Bxe6 {[%clk 0:00:57]} 24. Qxe6+ {[%clk 0:00:54]}  Kf8 {[%clk 0:00:58]} 25. Rxb7 {[%clk 0:00:51]}  Qe8 {[%clk 0:00:57]} 26. Re7 {[%clk 0:00:50]}  Qxe7 {[%clk 0:00:53]} 27. Qxe7+ {[%clk 0:00:48]}  Kg8 {[%clk 0:00:54]} 28. d7 {[%clk 0:00:49]}  h5 {[%clk 0:00:54]} 29. d8=Q# {[%clk 0:00:50]} 1-0


[Site "https://www.chess.com"]

[Event "Titled Tuesday Blitz May 4 2021"]
[White "Erdogdu, Mert"]
[Black "Mikhalsky, Vladimir"]
[WhiteFideId "6301495"]
[BlackFideId "14144352"]
[WhiteElo "2485"]
[BlackElo "2280"]
[Result "1-0"]
[Round "08"]
[TimeControl "180+1"]
[Date "2021.05.04"]
[WhiteClock "0:00:15"]
[BlackClock "0:00:09"]

1. e4 {[%clk 0:03:00]}  g6 {[%clk 0:02:59]} 2. d4 {[%clk 0:03:00]}  Bg7 {[%clk 0:02:58]} 3. Nc3 {[%clk 0:03:00]}  d6 {[%clk 0:02:58]} 4. Be3 {[%clk 0:03:01]}  a6 {[%clk 0:02:57]} 5. f4 {[%clk 0:03:01]}  b5 {[%clk 0:02:55]} 6. Bd3 {[%clk 0:03:01]}  Bb7 {[%clk 0:02:49]} 7. Nf3 {[%clk 0:03:00]}  b4 {[%clk 0:02:38]} 8. Ne2 {[%clk 0:02:50]}  Nf6 {[%clk 0:02:37]} 9. Ng3 {[%clk 0:02:49]}  c5 {[%clk 0:02:31]} 10. dxc5 {[%clk 0:02:46]}  Ng4 {[%clk 0:02:27]} 11. Bg1 {[%clk 0:02:37]}  Bxb2 {[%clk 0:02:25]} 12. h3 {[%clk 0:02:31]}  Nf6 {[%clk 0:02:14]} 13. cxd6 {[%clk 0:02:29]}  O-O {[%clk 0:02:06]} 14. Bc5 {[%clk 0:02:06]}  Bc3+ {[%clk 0:02:01]} 15. Kf1 {[%clk 0:01:59]}  exd6 {[%clk 0:01:59]} 16. Bd4 {[%clk 0:01:55]}  Nbd7 {[%clk 0:01:36]} 17. Bxc3 {[%clk 0:01:51]}  bxc3 {[%clk 0:01:36]} 18. Rb1 {[%clk 0:01:51]}  Nc5 {[%clk 0:01:36]} 19. Rb4 {[%clk 0:01:39]}  Re8 {[%clk 0:01:35]} 20. Qe2 {[%clk 0:01:26]}  Nd5 {[%clk 0:01:26]} 21. Rxb7 {[%clk 0:01:21]}  Nxf4 {[%clk 0:01:20]} 22. Qe3 {[%clk 0:01:16]}  Nfxd3 {[%clk 0:01:13]} 23. Rb1 {[%clk 0:01:02]}  Ne5 {[%clk 0:00:56]} 24. Qxc3 {[%clk 0:00:51]}  Qf6 {[%clk 0:00:46]} 25. Kg1 {[%clk 0:00:45]}  Qf4 {[%clk 0:00:37]} 26. Nxe5 {[%clk 0:00:33]}  Rxe5 {[%clk 0:00:36]} 27. Rf1 {[%clk 0:00:33]}  Qg5 {[%clk 0:00:33]} 28. Qf3 {[%clk 0:00:22]}  Ra7 {[%clk 0:00:31]} 29. h4 {[%clk 0:00:21]}  Qd2 {[%clk 0:00:29]} 30. h5 {[%clk 0:00:20]}  Qd4+ {[%clk 0:00:25]} 31. Kh2 {[%clk 0:00:19]}  gxh5 {[%clk 0:00:19]} 32. Nf5 {[%clk 0:00:17]}  Qxe4 {[%clk 0:00:18]} 33. Qg3+ {[%clk 0:00:16]}  Kf8 {[%clk 0:00:15]} 34. Qg7+ {[%clk 0:00:15]}  Ke8 {[%clk 0:00:15]} 35. Nxd6+ {[%clk 0:00:16]}  Kd7 {[%clk 0:00:12]} 36. Nxe4 {[%clk 0:00:17]}  Rxe4 {[%clk 0:00:11]} 37. Rxf7+ {[%clk 0:00:17]}  Kc6 {[%clk 0:00:11]} 38. Rxa7 {[%clk 0:00:17]}  Kb6 {[%clk 0:00:10]} 39. Qc7+ {[%clk 0:00:17]}  Kb5 {[%clk 0:00:10]} 40. Rb7+ {[%clk 0:00:17]}  Kc4 {[%clk 0:00:10]} 41. Rf1 {[%clk 0:00:14]}  Rh4+ {[%clk 0:00:09]} 42. Kg1 {[%clk 0:00:15]}  Rg4 {[%clk 0:00:09]} 43. Rf4+ {[%clk 0:00:15]} 1-0


[Site "https://www.chess.com"]

[Event "Titled Tuesday Blitz May 4 2021"]
[White "Estrada Nieto, Julian"]
[Black "Wagner, Dennis"]
[WhiteFideId "5101018"]
[BlackFideId "24650684"]
[WhiteElo "2270"]
[BlackElo "2355"]
[Result "0-1"]
[Round "08"]
[TimeControl "180+1"]
[Date "2021.05.04"]
[WhiteClock "0:00:01"]
[BlackClock "0:00:25"]

1. e4 {[%clk 0:03:00]}  e5 {[%clk 0:02:59]} 2. Nf3 {[%clk 0:02:59]}  Nc6 {[%clk 0:02:59]} 3. Bb5 {[%clk 0:02:58]}  a6 {[%clk 0:02:59]} 4. Ba4 {[%clk 0:02:58]}  Nf6 {[%clk 0:02:59]} 5. O-O {[%clk 0:02:58]}  Be7 {[%clk 0:02:58]} 6. d3 {[%clk 0:02:56]}  d6 {[%clk 0:02:57]} 7. Bxc6+ {[%clk 0:02:44]}  bxc6 {[%clk 0:02:56]} 8. d4 {[%clk 0:02:45]}  exd4 {[%clk 0:02:51]} 9. Nxd4 {[%clk 0:02:42]}  Bd7 {[%clk 0:02:48]} 10. Nc3 {[%clk 0:02:40]}  c5 {[%clk 0:02:40]} 11. Nf3 {[%clk 0:02:34]}  O-O {[%clk 0:02:39]} 12. h3 {[%clk 0:02:31]}  Re8 {[%clk 0:02:39]} 13. Re1 {[%clk 0:02:31]}  Bf8 {[%clk 0:02:39]} 14. e5 {[%clk 0:02:26]}  dxe5 {[%clk 0:02:23]} 15. Nxe5 {[%clk 0:02:26]}  Bf5 {[%clk 0:02:22]} 16. Qf3 {[%clk 0:01:56]}  Bxc2 {[%clk 0:02:17]} 17. Bg5 {[%clk 0:01:55]}  h6 {[%clk 0:02:06]} 18. Nc6 {[%clk 0:01:35]}  Qd3 {[%clk 0:01:56]} 19. Qxd3 {[%clk 0:01:22]}  Bxd3 {[%clk 0:01:57]} 20. Bxf6 {[%clk 0:01:21]}  gxf6 {[%clk 0:01:56]} 21. Nd5 {[%clk 0:01:18]}  Kg7 {[%clk 0:01:39]} 22. Rxe8 {[%clk 0:00:26]}  Rxe8 {[%clk 0:01:38]} 23. Rd1 {[%clk 0:00:27]}  c4 {[%clk 0:01:36]} 24. Nf4 {[%clk 0:00:23]}  Bd6 {[%clk 0:01:13]} 25. Nxd3 {[%clk 0:00:18]}  cxd3 {[%clk 0:01:14]} 26. Kf1 {[%clk 0:00:17]}  Re2 {[%clk 0:01:14]} 27. Rxd3 {[%clk 0:00:14]}  Rxb2 {[%clk 0:01:13]} 28. a4 {[%clk 0:00:13]}  Rc2 {[%clk 0:01:08]} 29. Nd4 {[%clk 0:00:12]}  Rc4 {[%clk 0:01:01]} 30. Nf5+ {[%clk 0:00:11]}  Kg6 {[%clk 0:01:01]} 31. Nxd6 {[%clk 0:00:12]}  cxd6 {[%clk 0:01:02]} 32. Rxd6 {[%clk 0:00:09]}  Rxa4 {[%clk 0:01:02]} 33. Rd7 {[%clk 0:00:07]}  Ra2 {[%clk 0:00:59]} 34. g3 {[%clk 0:00:07]}  a5 {[%clk 0:00:58]} 35. Ra7 {[%clk 0:00:07]}  a4 {[%clk 0:00:58]} 36. Kg2 {[%clk 0:00:07]}  a3 {[%clk 0:00:57]} 37. h4 {[%clk 0:00:07]}  Kf5 {[%clk 0:00:53]} 38. Kf3 {[%clk 0:00:08]}  Ke6 {[%clk 0:00:52]} 39. g4 {[%clk 0:00:07]}  Kd5 {[%clk 0:00:48]} 40. Rxf7 {[%clk 0:00:07]}  Rc2 {[%clk 0:00:46]} 41. Rxf6 {[%clk 0:00:04]}  a2 {[%clk 0:00:32]} 42. Ra6 {[%clk 0:00:04]}  Kc4 {[%clk 0:00:31]} 43. g5 {[%clk 0:00:04]}  hxg5 {[%clk 0:00:30]} 44. hxg5 {[%clk 0:00:04]}  Kb5 {[%clk 0:00:29]} 45. Ra8 {[%clk 0:00:03]}  Rc3+ {[%clk 0:00:24]} 46. Kf4 {[%clk 0:00:02]}  Rc4+ {[%clk 0:00:24]} 47. Kf5 {[%clk 0:00:01]}  Ra4 {[%clk 0:00:25]} 0-1


[Site "https://www.chess.com"]

[Event "Titled Tuesday Blitz May 4 2021"]
[White "Foerster-Yialamas, Lucas"]
[Black "Aslanov, Umid"]
[WhiteFideId "30901774"]
[BlackFideId "13412620"]
[WhiteElo "1744"]
[BlackElo "1796"]
[Result "1-0"]
[Round "08"]
[TimeControl "180+1"]
[Date "2021.05.04"]
[WhiteClock "0:00:24"]
[BlackClock "0:00:05"]

1. e4 {[%clk 0:03:00]}  c5 {[%clk 0:03:00]} 2. Nf3 {[%clk 0:03:01]}  d6 {[%clk 0:03:00]} 3. d4 {[%clk 0:03:01]}  cxd4 {[%clk 0:03:01]} 4. Nxd4 {[%clk 0:03:02]}  Nf6 {[%clk 0:03:02]} 5. Nc3 {[%clk 0:03:02]}  a6 {[%clk 0:03:03]} 6. f3 {[%clk 0:03:02]}  e5 {[%clk 0:03:01]} 7. Nb3 {[%clk 0:03:01]}  Be6 {[%clk 0:03:02]} 8. Be3 {[%clk 0:02:59]}  Be7 {[%clk 0:03:02]} 9. Qd2 {[%clk 0:02:54]}  O-O {[%clk 0:03:02]} 10. O-O-O {[%clk 0:02:53]}  Nbd7 {[%clk 0:02:57]} 11. g4 {[%clk 0:02:53]}  b5 {[%clk 0:02:57]} 12. g5 {[%clk 0:02:53]}  b4 {[%clk 0:02:57]} 13. Ne2 {[%clk 0:02:53]}  Ne8 {[%clk 0:02:55]} 14. f4 {[%clk 0:02:54]}  a5 {[%clk 0:02:53]} 15. f5 {[%clk 0:02:54]}  a4 {[%clk 0:02:53]} 16. fxe6 {[%clk 0:02:49]}  axb3 {[%clk 0:02:50]} 17. cxb3 {[%clk 0:02:46]}  fxe6 {[%clk 0:02:34]} 18. Bh3 {[%clk 0:02:36]}  Rxa2 {[%clk 0:02:28]} 19. Bxe6+ {[%clk 0:02:34]}  Kh8 {[%clk 0:02:29]} 20. Ng3 {[%clk 0:02:01]}  Nc7 {[%clk 0:02:03]} 21. Bc4 {[%clk 0:02:00]}  Rf3 {[%clk 0:01:31]} 22. Kb1 {[%clk 0:01:54]}  Qa8 {[%clk 0:01:25]} 23. Rhg1 {[%clk 0:01:21]}  Nc5 {[%clk 0:00:40]} 24. Bxc5 {[%clk 0:01:17]}  dxc5 {[%clk 0:00:41]} 25. Qe2 {[%clk 0:01:15]}  Rc3 {[%clk 0:00:36]} 26. bxc3 {[%clk 0:01:08]}  Rxe2 {[%clk 0:00:34]} 27. Nxe2 {[%clk 0:01:09]}  Qxe4+ {[%clk 0:00:32]} 28. Kb2 {[%clk 0:01:04]}  Ne8 {[%clk 0:00:17]} 29. cxb4 {[%clk 0:00:59]}  Nd6 {[%clk 0:00:15]} 30. Rxd6 {[%clk 0:00:44]}  Bxd6 {[%clk 0:00:13]} 31. b5 {[%clk 0:00:45]}  h6 {[%clk 0:00:09]} 32. gxh6 {[%clk 0:00:39]}  gxh6 {[%clk 0:00:10]} 33. b6 {[%clk 0:00:39]}  Qb7 {[%clk 0:00:09]} 34. Rg6 {[%clk 0:00:35]}  Qxb6 {[%clk 0:00:07]} 35. Rxh6+ {[%clk 0:00:30]}  Kg7 {[%clk 0:00:06]} 36. Re6 {[%clk 0:00:30]}  e4 {[%clk 0:00:04]} 37. Ng3 {[%clk 0:00:29]}  Bxg3 {[%clk 0:00:03]} 38. Rxb6 {[%clk 0:00:28]}  Be5+ {[%clk 0:00:04]} 39. Kc2 {[%clk 0:00:26]}  e3 {[%clk 0:00:04]} 40. Rc6 {[%clk 0:00:26]}  Bd4 {[%clk 0:00:04]} 41. Kd3 {[%clk 0:00:26]}  Kf8 {[%clk 0:00:05]} 42. b4 {[%clk 0:00:24]}  Ke7 {[%clk 0:00:05]} 1-0


[Site "https://www.chess.com"]

[Event "Titled Tuesday Blitz May 4 2021"]
[White "Golizadeh, Asghar"]
[Black "Vivas Zamora, Fabian Ernesto"]
[WhiteFideId "12505269"]
[BlackFideId "3902480"]
[WhiteElo "2403"]
[BlackElo "1966"]
[Result "1-0"]
[Round "08"]
[TimeControl "180+1"]
[Date "2021.05.04"]
[WhiteClock "0:00:09"]
[BlackClock "0:00:02"]

1. e4 {[%clk 0:03:00]}  e5 {[%clk 0:02:59]} 2. Nf3 {[%clk 0:03:01]}  Nc6 {[%clk 0:03:00]} 3. d4 {[%clk 0:03:01]}  exd4 {[%clk 0:03:00]} 4. Bc4 {[%clk 0:03:02]}  Nf6 {[%clk 0:03:00]} 5. e5 {[%clk 0:03:03]}  d5 {[%clk 0:03:00]} 6. Bb5 {[%clk 0:03:03]}  Ne4 {[%clk 0:03:01]} 7. Nxd4 {[%clk 0:03:04]}  Bc5 {[%clk 0:03:01]} 8. Be3 {[%clk 0:03:03]}  O-O {[%clk 0:03:00]} 9. Bxc6 {[%clk 0:03:03]}  bxc6 {[%clk 0:03:00]} 10. Nd2 {[%clk 0:03:03]}  Qe8 {[%clk 0:02:50]} 11. Nxe4 {[%clk 0:02:49]}  dxe4 {[%clk 0:02:49]} 12. O-O {[%clk 0:02:49]}  Bb6 {[%clk 0:02:21]} 13. a4 {[%clk 0:02:43]}  a5 {[%clk 0:02:13]} 14. Qh5 {[%clk 0:02:42]}  Ba6 {[%clk 0:01:38]} 15. Rfe1 {[%clk 0:02:39]}  Rd8 {[%clk 0:01:35]} 16. Nf5 {[%clk 0:02:34]}  Rd5 {[%clk 0:00:59]} 17. Qg5 {[%clk 0:01:34]}  Qxe5 {[%clk 0:00:55]} 18. Ne7+ {[%clk 0:01:31]}  Kh8 {[%clk 0:00:54]} 19. Nxd5 {[%clk 0:01:28]}  Qxg5 {[%clk 0:00:51]} 20. Bxg5 {[%clk 0:01:27]}  cxd5 {[%clk 0:00:52]} 21. Rad1 {[%clk 0:01:25]}  Bb7 {[%clk 0:00:30]} 22. b3 {[%clk 0:00:57]}  c5 {[%clk 0:00:26]} 23. h4 {[%clk 0:00:57]}  f5 {[%clk 0:00:20]} 24. g3 {[%clk 0:00:54]}  g6 {[%clk 0:00:17]} 25. c4 {[%clk 0:00:53]}  d4 {[%clk 0:00:16]} 26. Bf4 {[%clk 0:00:49]}  Kg7 {[%clk 0:00:15]} 27. h5 {[%clk 0:00:47]}  Kf6 {[%clk 0:00:12]} 28. hxg6 {[%clk 0:00:45]}  hxg6 {[%clk 0:00:13]} 29. Kg2 {[%clk 0:00:24]}  g5 {[%clk 0:00:11]} 30. Bc1 {[%clk 0:00:22]}  g4 {[%clk 0:00:06]} 31. Be3 {[%clk 0:00:19]}  Ke5 {[%clk 0:00:02]} 32. Bf4+ {[%clk 0:00:16]}  Ke6 {[%clk 0:00:02]} 33. Kf1 {[%clk 0:00:10]}  Rh8 {[%clk 0:00:02]} 34. Ke2 {[%clk 0:00:11]}  Rh2 {[%clk 0:00:02]} 35. Rh1 {[%clk 0:00:09]} 1-0


[Site "https://www.chess.com"]

[Event "Titled Tuesday Blitz May 4 2021"]
[White "Gretarsson, Helgi Ass"]
[Black "Kovacs, Klara"]
[WhiteFideId "2300699"]
[BlackFideId "733210"]
[WhiteElo "2519"]
[BlackElo "2120"]
[Result "1-0"]
[Round "08"]
[TimeControl "180+1"]
[Date "2021.05.04"]
[WhiteClock "0:00:03"]
[BlackClock "0:00:17"]

1. g3 {[%clk 0:03:00]}  d5 {[%clk 0:02:54]} 2. Bg2 {[%clk 0:03:00]}  c6 {[%clk 0:02:55]} 3. b3 {[%clk 0:02:57]}  Nf6 {[%clk 0:02:54]} 4. Bb2 {[%clk 0:02:58]}  Nbd7 {[%clk 0:02:55]} 5. Nf3 {[%clk 0:02:55]}  Qc7 {[%clk 0:02:52]} 6. c4 {[%clk 0:02:49]}  e5 {[%clk 0:02:52]} 7. cxd5 {[%clk 0:02:48]}  cxd5 {[%clk 0:02:51]} 8. Nc3 {[%clk 0:02:49]}  Bb4 {[%clk 0:02:50]} 9. Rc1 {[%clk 0:02:48]}  O-O {[%clk 0:02:50]} 10. Nxd5 {[%clk 0:02:47]}  Qd6 {[%clk 0:02:48]} 11. Nxb4 {[%clk 0:02:46]}  Qxb4 {[%clk 0:02:49]} 12. Nxe5 {[%clk 0:02:38]}  Nxe5 {[%clk 0:02:49]} 13. Bxe5 {[%clk 0:02:38]}  Ng4 {[%clk 0:02:49]} 14. Bc3 {[%clk 0:02:32]}  Qb6 {[%clk 0:02:49]} 15. O-O {[%clk 0:02:30]}  Be6 {[%clk 0:02:49]} 16. e4 {[%clk 0:02:22]}  Rfd8 {[%clk 0:02:48]} 17. d4 {[%clk 0:02:21]}  Rac8 {[%clk 0:02:47]} 18. d5 {[%clk 0:02:19]}  f5 {[%clk 0:02:47]} 19. Qe2 {[%clk 0:02:15]}  Bf7 {[%clk 0:02:42]} 20. Rfd1 {[%clk 0:01:56]}  Re8 {[%clk 0:02:29]} 21. Bd4 {[%clk 0:01:46]}  Qh6 {[%clk 0:02:22]} 22. Rxc8 {[%clk 0:01:31]}  Qxh2+ {[%clk 0:02:21]} 23. Kf1 {[%clk 0:01:32]}  Rxc8 {[%clk 0:02:21]} 24. exf5 {[%clk 0:01:29]}  Qh5 {[%clk 0:02:16]} 25. d6 {[%clk 0:01:11]}  Re8 {[%clk 0:01:57]} 26. Be3 {[%clk 0:01:01]}  Qxf5 {[%clk 0:01:46]} 27. Kg1 {[%clk 0:00:45]}  Nxe3 {[%clk 0:01:36]} 28. d7 {[%clk 0:00:25]}  Rd8 {[%clk 0:01:29]} 29. Qxe3 {[%clk 0:00:25]}  Rxd7 {[%clk 0:01:25]} 30. Rxd7 {[%clk 0:00:25]}  Qxd7 {[%clk 0:01:26]} 31. Qxa7 {[%clk 0:00:25]}  Qd1+ {[%clk 0:01:24]} 32. Bf1 {[%clk 0:00:25]}  h6 {[%clk 0:01:20]} 33. Qxb7 {[%clk 0:00:21]}  Bg6 {[%clk 0:01:05]} 34. Qb5 {[%clk 0:00:12]}  Kh7 {[%clk 0:01:04]} 35. Qe2 {[%clk 0:00:11]}  Qb1 {[%clk 0:01:02]} 36. Kh2 {[%clk 0:00:09]}  Be4 {[%clk 0:00:52]} 37. Bg2 {[%clk 0:00:08]}  Bd3 {[%clk 0:00:52]} 38. Qe3 {[%clk 0:00:07]}  Bg6 {[%clk 0:00:50]} 39. a4 {[%clk 0:00:06]}  Qd1 {[%clk 0:00:45]} 40. Bf3 {[%clk 0:00:06]}  Qc2 {[%clk 0:00:41]} 41. a5 {[%clk 0:00:06]}  Qa2 {[%clk 0:00:38]} 42. b4 {[%clk 0:00:05]}  Qb2 {[%clk 0:00:38]} 43. Qc5 {[%clk 0:00:03]}  Qb3 {[%clk 0:00:37]} 44. Kg2 {[%clk 0:00:02]}  Qa3 {[%clk 0:00:35]} 45. Qb6 {[%clk 0:00:03]}  h5 {[%clk 0:00:29]} 46. a6 {[%clk 0:00:03]}  Bd3 {[%clk 0:00:26]} 47. Qe3 {[%clk 0:00:02]}  Qxa6 {[%clk 0:00:25]} 48. Be4+ {[%clk 0:00:02]}  Bxe4+ {[%clk 0:00:24]} 49. Qxe4+ {[%clk 0:00:03]}  g6 {[%clk 0:00:23]} 50. Qd5 {[%clk 0:00:03]}  Qf6 {[%clk 0:00:20]} 51. b5 {[%clk 0:00:03]}  h4 {[%clk 0:00:21]} 52. Qc6 {[%clk 0:00:03]}  Qe5 {[%clk 0:00:19]} 53. b6 {[%clk 0:00:03]}  hxg3 {[%clk 0:00:18]} 54. Qc7+ {[%clk 0:00:03]}  Qxc7 {[%clk 0:00:16]} 55. bxc7 {[%clk 0:00:03]}  gxf2 {[%clk 0:00:17]} 56. c8=Q {[%clk 0:00:03]} 1-0


[Site "https://www.chess.com"]